[Event "Late-Titled-Tuesday-Blitz-April-02-2024"]
[Site "Chess.com"]
[Date "2024.04.02"]
[Round "1"]
[White "Sl4werThanYou"]
[Black "tgpgoat"]
[Result "1/2-1/2"]
[WhiteElo "2710"]
[BlackElo "2423"]
[TimeControl "180+1"]
[EndTime "14:08:31 PDT"]
[Termination "Game drawn by stalemate"]

1. e4 {[%clk 0:02:52.2]} 1... c5 {[%clk 0:02:59.4]} 2. Nf3 {[%clk 0:02:47.6]}
2... e6 {[%clk 0:02:58.5]} 3. g3 {[%clk 0:02:40.6]} 3... Nc6 {[%clk 0:02:58.5]}
4. Bg2 {[%clk 0:02:39.3]} 4... a6 {[%clk 0:02:59.1]} 5. O-O {[%clk 0:02:39.3]}
5... Nf6 {[%clk 0:02:59.7]} 6. Qe2 {[%clk 0:02:39.1]} 6... d6 {[%clk 0:03:00.3]}
7. d3 {[%clk 0:02:33.9]} 7... Be7 {[%clk 0:03:00.8]} 8. Nbd2 {[%clk 0:02:32.8]}
8... O-O {[%clk 0:03:01.3]} 9. Re1 {[%clk 0:02:33.5]} 9... b5 {[%clk 0:03:01]}
10. Nf1 {[%clk 0:02:33.7]} 10... Bb7 {[%clk 0:03:00.9]} 11. h4 {[%clk
0:02:33.2]} 11... Qc7 {[%clk 0:03:00.6]} 12. Ne3 {[%clk 0:02:31.2]} 12... Rfe8
{[%clk 0:02:58.7]} 13. c3 {[%clk 0:02:31.1]} 13... d5 {[%clk 0:02:58.6]} 14. Nf1
{[%clk 0:02:28.5]} 14... dxe4 {[%clk 0:02:58.1]} 15. dxe4 {[%clk 0:02:29.4]}
15... Ne5 {[%clk 0:02:54.9]} 16. Nxe5 {[%clk 0:02:28.7]} 16... Qxe5 {[%clk
0:02:53.4]} 17. Bf4 {[%clk 0:02:29.6]} 17... Qh5 {[%clk 0:02:47.8]} 18. e5
{[%clk 0:02:29.9]} 18... Qxe2 {[%clk 0:02:45.8]} 19. Rxe2 {[%clk 0:02:30.8]}
19... Bxg2 {[%clk 0:02:42.9]} 20. exf6 {[%clk 0:02:30.5]} 20... Bxf1 {[%clk
0:02:42.8]} 21. Kxf1 {[%clk 0:02:22.6]} 21... Bxf6 {[%clk 0:02:41.1]} 22. Rd1
{[%clk 0:02:23.1]} 22... Red8 {[%clk 0:02:40]} 23. Red2 {[%clk 0:02:20.9]} 23...
Rxd2 {[%clk 0:02:18.5]} 24. Bxd2 {[%clk 0:02:20.7]} 24... Rd8 {[%clk 0:02:18.4]}
25. Ke2 {[%clk 0:02:21.2]} 25... Kf8 {[%clk 0:02:17.9]} 26. a4 {[%clk
0:02:18.3]} 26... Ke7 {[%clk 0:02:16.9]} 27. axb5 {[%clk 0:02:17.9]} 27... axb5
{[%clk 0:02:16.4]} 28. Be3 {[%clk 0:02:16.4]} 28... Rxd1 {[%clk 0:02:15.1]} 29.
Kxd1 {[%clk 0:02:13.7]} 29... Kd6 {[%clk 0:02:14.7]} 30. Ke2 {[%clk 0:02:13.6]}
30... Kd5 {[%clk 0:02:14]} 31. Kd3 {[%clk 0:02:13.8]} 31... c4+ {[%clk
0:02:14.1]} 32. Ke2 {[%clk 0:02:13.9]} 32... b4 {[%clk 0:02:13.2]} 33. Bd2
{[%clk 0:02:07.4]} 33... bxc3 {[%clk 0:02:12.8]} 34. bxc3 {[%clk 0:02:07.7]}
34... Kc5 {[%clk 0:02:10.1]} 35. Kd1 {[%clk 0:02:05]} 35... Kd5 {[%clk
0:02:09.3]} 36. Ke2 {[%clk 0:02:05.1]} 36... h6 {[%clk 0:02:08.2]} 37. h5 {[%clk
0:01:58.9]} 37... Ke4 {[%clk 0:02:01.5]} 38. f3+ {[%clk 0:01:56.8]} 38... Kd5
{[%clk 0:02:02.1]} 39. Ke3 {[%clk 0:01:54.3]} 39... e5 {[%clk 0:01:58.9]} 40. f4
{[%clk 0:01:54.5]} 40... exf4+ {[%clk 0:01:59.1]} 41. gxf4 {[%clk 0:01:55]}
41... g5 {[%clk 0:01:56.6]} 42. Kf3 {[%clk 0:01:52.1]} 42... gxf4 {[%clk
0:01:31.6]} 43. Bxf4 {[%clk 0:01:49.1]} 43... Bxc3 {[%clk 0:01:31.9]} 44. Bxh6
{[%clk 0:01:49]} 44... Bb2 {[%clk 0:01:31.6]} 45. Ke2 {[%clk 0:01:19.2]} 45...
Ke4 {[%clk 0:01:29]} 46. Bf8 {[%clk 0:01:19.6]} 46... f5 {[%clk 0:01:28.2]} 47.
h6 {[%clk 0:01:18.7]} 47... Bf6 {[%clk 0:00:48.4]} 48. Bg7 {[%clk 0:01:12.8]}
48... Ke5 {[%clk 0:00:48.8]} 49. Ke3 {[%clk 0:00:51.4]} 49... Ke6 {[%clk
0:00:46.8]} 50. Bf8 {[%clk 0:00:47.5]} 50... Kf7 {[%clk 0:00:44.7]} 51. Bd6
{[%clk 0:00:43]} 51... Kg6 {[%clk 0:00:37.6]} 52. Bf4 {[%clk 0:00:43]} 52... Bb2
{[%clk 0:00:35.1]} 53. Ke2 {[%clk 0:00:42.2]} 53... Bd4 {[%clk 0:00:26.8]} 54.
Kd2 {[%clk 0:00:39.1]} 54... Bc5 {[%clk 0:00:25.6]} 55. Kc3 {[%clk 0:00:38.1]}
55... Bf8 {[%clk 0:00:25.7]} 56. h7 {[%clk 0:00:35.6]} 56... Kxh7 {[%clk
0:00:25]} 57. Kxc4 {[%clk 0:00:36.2]} 57... Kg6 {[%clk 0:00:25.4]} 58. Kd5
{[%clk 0:00:36.8]} 58... Bh6 {[%clk 0:00:25.2]} 59. Be5 {[%clk 0:00:35.1]} 59...
Kg5 {[%clk 0:00:24.1]} 60. Kd4 {[%clk 0:00:33.7]} 60... Kg4 {[%clk 0:00:24]} 61.
Kd3 {[%clk 0:00:34.4]} 61... Bf4 {[%clk 0:00:23.7]} 62. Bg7 {[%clk 0:00:31.3]}
62... Bg5 {[%clk 0:00:23.5]} 63. Be5 {[%clk 0:00:31]} 63... Kf3 {[%clk 0:00:24]}
64. Kc2 {[%clk 0:00:30.4]} 64... Ke4 {[%clk 0:00:23]} 65. Bd6 {[%clk 0:00:29.6]}
65... Bf4 {[%clk 0:00:19.3]} 66. Bf8 {[%clk 0:00:29.9]} 66... Be5 {[%clk
0:00:19.3]} 67. Kd1 {[%clk 0:00:28.7]} 67... f4 {[%clk 0:00:19.3]} 68. Ke2
{[%clk 0:00:28.9]} 68... f3+ {[%clk 0:00:19.5]} 69. Kf1 {[%clk 0:00:29.6]} 69...
Bd4 {[%clk 0:00:19.6]} 70. Bb4 {[%clk 0:00:29.8]} 70... Ke3 {[%clk 0:00:19.5]}
71. Be1 {[%clk 0:00:29.8]} 71... Kf4 {[%clk 0:00:20.1]} 72. Bd2+ {[%clk
0:00:28.8]} 72... Be3 {[%clk 0:00:18.7]} 73. Ba5 {[%clk 0:00:29.7]} 73... Kg3
{[%clk 0:00:18.7]} 74. Bc7+ {[%clk 0:00:30.6]} 74... Bf4 {[%clk 0:00:19.2]} 75.
Ba5 {[%clk 0:00:31.1]} 75... Be3 {[%clk 0:00:17.4]} 76. Be1+ {[%clk 0:00:32]}
76... Kg4 {[%clk 0:00:17.1]} 77. Bc3 {[%clk 0:00:32.9]} 77... Kf5 {[%clk
0:00:14.5]} 78. Bh8 {[%clk 0:00:33.8]} 78... Ke4 {[%clk 0:00:14.8]} 79. Ba1
{[%clk 0:00:34.7]} 79... Bd4 {[%clk 0:00:14.4]} 80. Bxd4 {[%clk 0:00:33.8]}
80... Kxd4 {[%clk 0:00:14.9]} 81. Kf2 {[%clk 0:00:34.6]} 81... Ke4 {[%clk
0:00:15.3]} 82. Kf1 {[%clk 0:00:35.4]} 82... Kf4 {[%clk 0:00:12.6]} 83. Kf2
{[%clk 0:00:36.3]} 83... Kg4 {[%clk 0:00:13.1]} 84. Kf1 {[%clk 0:00:36.8]} 84...
Kg3 {[%clk 0:00:13.7]} 85. Kg1 {[%clk 0:00:37.2]} 85... f2+ {[%clk 0:00:14.4]}
86. Kf1 {[%clk 0:00:37.5]} 86... Kf3 {[%clk 0:00:15.3]} 1/2-1/2

[Event "Late-Titled-Tuesday-Blitz-April-02-2024"]
[Site "Chess.com"]
[Date "2024.04.02"]
[Round "1"]
[White "teresin05"]
[Black "The_Sherman_Variation"]
[Result "1-0"]
[WhiteElo "2288"]
[BlackElo "2587"]
[TimeControl "180+1"]
[EndTime "14:08:42 PDT"]
[Termination "teresin05 won by resignation"]

1. e4 {[%clk 0:02:56.7]} 1... c5 {[%clk 0:02:54.8]} 2. Nf3 {[%clk 0:02:55.6]}
2... g6 {[%clk 0:02:53]} 3. c4 {[%clk 0:02:55]} 3... Nc6 {[%clk 0:02:51.7]} 4.
d4 {[%clk 0:02:54]} 4... cxd4 {[%clk 0:02:52.6]} 5. Nxd4 {[%clk 0:02:54.6]} 5...
Nf6 {[%clk 0:02:52.2]} 6. Nc3 {[%clk 0:02:53.9]} 6... Nxd4 {[%clk 0:02:47.5]} 7.
Qxd4 {[%clk 0:02:53]} 7... d6 {[%clk 0:02:48]} 8. Be3 {[%clk 0:02:50.3]} 8...
Bg7 {[%clk 0:02:47.8]} 9. Be2 {[%clk 0:02:47.5]} 9... O-O {[%clk 0:02:47.7]} 10.
Qd2 {[%clk 0:02:46.7]} 10... Be6 {[%clk 0:02:48.1]} 11. O-O {[%clk 0:02:42.2]}
11... Ng4 {[%clk 0:02:47.2]} 12. Bxg4 {[%clk 0:02:40.8]} 12... Bxg4 {[%clk
0:02:48.1]} 13. Nd5 {[%clk 0:02:39.7]} 13... b6 {[%clk 0:02:42.9]} 14. f3 {[%clk
0:02:39.2]} 14... Be6 {[%clk 0:02:42.1]} 15. a4 {[%clk 0:02:39.1]} 15... Rc8
{[%clk 0:02:41.8]} 16. Rfc1 {[%clk 0:02:28.4]} 16... Bxd5 {[%clk 0:02:40.2]} 17.
cxd5 {[%clk 0:02:27.3]} 17... Qd7 {[%clk 0:02:37.2]} 18. a5 {[%clk 0:02:24.1]}
18... b5 {[%clk 0:02:34.6]} 19. Rab1 {[%clk 0:02:19.4]} 19... a6 {[%clk
0:02:32.8]} 20. b4 {[%clk 0:02:18.1]} 20... Rc4 {[%clk 0:02:27.4]} 21. Rxc4
{[%clk 0:02:16.9]} 21... bxc4 {[%clk 0:02:28.3]} 22. b5 {[%clk 0:02:00.4]} 22...
axb5 {[%clk 0:02:26.7]} 23. Qb4 {[%clk 0:02:00.7]} 23... c3 {[%clk 0:02:16.6]}
24. Qxb5 {[%clk 0:01:55.1]} 24... Qc7 {[%clk 0:02:13.9]} 25. a6 {[%clk 0:01:27]}
25... c2 {[%clk 0:02:11]} 26. Rc1 {[%clk 0:01:26.8]} 26... Qc3 {[%clk
0:02:11.4]} 27. Qe2 {[%clk 0:01:24.3]} 27... Ra8 {[%clk 0:02:08.1]} 28. a7
{[%clk 0:01:23.5]} 28... Bd4 {[%clk 0:02:06.8]} 29. Bxd4 {[%clk 0:01:19.5]}
29... Qxd4+ {[%clk 0:02:07.7]} 30. Kf1 {[%clk 0:01:19.8]} 30... Rxa7 {[%clk
0:02:06.7]} 31. Qxc2 {[%clk 0:01:20.1]} 31... Ra3 {[%clk 0:02:01.6]} 32. Rd1
{[%clk 0:01:12.8]} 32... Qa7 {[%clk 0:01:55.6]} 33. Rc1 {[%clk 0:01:10.1]} 33...
Ra2 {[%clk 0:01:53]} 34. Qc8+ {[%clk 0:01:08.3]} 34... Kg7 {[%clk 0:01:53.4]}
35. Qc3+ {[%clk 0:01:07.6]} 35... f6 {[%clk 0:01:53.8]} 36. Rc2 {[%clk
0:01:05.6]} 36... Ra3 {[%clk 0:01:50.6]} 37. Qc7 {[%clk 0:01:02.5]} 37... Ra1+
{[%clk 0:01:43.4]} 38. Ke2 {[%clk 0:01:00.2]} 38... Qa6+ {[%clk 0:01:34.6]} 39.
Kf2 {[%clk 0:00:49.8]} 39... Kf7 {[%clk 0:01:31.2]} 40. Qc8 {[%clk 0:00:49.2]}
40... Rf1+ {[%clk 0:00:59.7]} 41. Kg3 {[%clk 0:00:47.6]} 41... Qxc8 {[%clk
0:00:56.8]} 42. Rxc8 {[%clk 0:00:48.5]} 42... h5 {[%clk 0:00:56.9]} 43. Rh8
{[%clk 0:00:46]} 43... Ra1 {[%clk 0:00:50.6]} 44. Rh7+ {[%clk 0:00:45.9]} 44...
Kf8 {[%clk 0:00:49.1]} 45. h4 {[%clk 0:00:39.8]} 45... Ra7 {[%clk 0:00:47.7]}
46. Rh8+ {[%clk 0:00:39.7]} 46... Kf7 {[%clk 0:00:47.4]} 47. Rc8 {[%clk
0:00:37.4]} 47... Rb7 {[%clk 0:00:47.3]} 48. Kf4 {[%clk 0:00:37.9]} 48... Rb2
{[%clk 0:00:46.9]} 49. g4 {[%clk 0:00:38.3]} 49... Rh2 {[%clk 0:00:44.8]} 50.
Kg3 {[%clk 0:00:37.3]} 50... Rh1 {[%clk 0:00:45]} 51. gxh5 {[%clk 0:00:37]}
51... gxh5 {[%clk 0:00:45.9]} 52. Rh8 {[%clk 0:00:36.4]} 52... Kg7 {[%clk
0:00:43.2]} 53. Re8 {[%clk 0:00:36.9]} 53... Kf7 {[%clk 0:00:42.8]} 54. Rh8
{[%clk 0:00:37.5]} 54... Rg1+ {[%clk 0:00:36.5]} 55. Kf4 {[%clk 0:00:37.3]}
55... Kg7 {[%clk 0:00:26.4]} 56. Rxh5 {[%clk 0:00:33.9]} 56... Rh1 {[%clk
0:00:24.5]} 57. Kg3 {[%clk 0:00:27.2]} 57... Rg1+ {[%clk 0:00:23.5]} 58. Kf2
{[%clk 0:00:26.2]} 58... Ra1 {[%clk 0:00:21.7]} 59. Rf5 {[%clk 0:00:25.6]} 59...
Rh1 {[%clk 0:00:21.8]} 60. Rf4 {[%clk 0:00:25.8]} 60... Kf7 {[%clk 0:00:20.2]}
61. Rg4 {[%clk 0:00:26.2]} 61... Rh2+ {[%clk 0:00:20.8]} 62. Kg3 {[%clk
0:00:26.6]} 62... Rh1 {[%clk 0:00:21.5]} 63. Kf4 {[%clk 0:00:25.6]} 63... Rh2
{[%clk 0:00:21.9]} 64. Kg3 {[%clk 0:00:25.7]} 64... Rh1 {[%clk 0:00:22.5]} 65.
Kg2 {[%clk 0:00:26.4]} 65... Rc1 {[%clk 0:00:22.5]} 66. h5 {[%clk 0:00:26.4]}
66... Rc2+ {[%clk 0:00:23.2]} 67. Kg3 {[%clk 0:00:26.3]} 67... Rc1 {[%clk
0:00:23.8]} 68. h6 {[%clk 0:00:26.5]} 68... Rh1 {[%clk 0:00:23.9]} 69. Rg7+
{[%clk 0:00:20.4]} 69... Kf8 {[%clk 0:00:23.3]} 70. Rh7 {[%clk 0:00:20.8]} 70...
Rg1+ {[%clk 0:00:22.3]} 71. Kf4 {[%clk 0:00:21.1]} 71... Rh1 {[%clk 0:00:22.9]}
72. Kf5 {[%clk 0:00:20.5]} 72... Rh5+ {[%clk 0:00:22.5]} 73. Ke6 {[%clk
0:00:17.4]} 73... Re5+ {[%clk 0:00:23.1]} 74. Kd7 {[%clk 0:00:17.9]} 74... f5
{[%clk 0:00:22.3]} 75. Rh8+ {[%clk 0:00:15.1]} 75... Kf7 {[%clk 0:00:22.1]} 76.
Re8 {[%clk 0:00:12.5]} 76... Kg6 {[%clk 0:00:19.8]} 77. Rxe7 {[%clk 0:00:11.6]}
77... Rxe7+ {[%clk 0:00:19.8]} 78. Kxe7 {[%clk 0:00:12.5]} 78... f4 {[%clk
0:00:20.3]} 79. Kxd6 {[%clk 0:00:11.8]} 79... Kxh6 {[%clk 0:00:21.2]} 80. Ke5
{[%clk 0:00:12]} 80... Kg5 {[%clk 0:00:22.1]} 81. d6 {[%clk 0:00:12.3]} 81...
Kh4 {[%clk 0:00:23]} 82. Kxf4 {[%clk 0:00:12.1]} 1-0

[Event "Late-Titled-Tuesday-Blitz-April-02-2024"]
[Site "Chess.com"]
[Date "2024.04.02"]
[Round "1"]
[White "Kacparov"]
[Black "chess_blitz00"]
[Result "1-0"]
[WhiteElo "2922"]
[BlackElo "2503"]
[TimeControl "180+1"]
[EndTime "14:08:43 PDT"]
[Termination "Kacparov won on time"]

1. e4 {[%clk 0:03:00.9]} 1... d6 {[%clk 0:02:58]} 2. d4 {[%clk 0:03:01]} 2...
Nf6 {[%clk 0:02:58.9]} 3. Nc3 {[%clk 0:03:01.3]} 3... e5 {[%clk 0:02:59.4]} 4.
Nf3 {[%clk 0:03:01.4]} 4... Nbd7 {[%clk 0:02:59.5]} 5. Bc4 {[%clk 0:03:02]} 5...
Be7 {[%clk 0:02:59.7]} 6. O-O {[%clk 0:03:02.1]} 6... O-O {[%clk 0:03:00.1]} 7.
a4 {[%clk 0:03:02.4]} 7... c6 {[%clk 0:02:59.3]} 8. Re1 {[%clk 0:03:02.8]} 8...
h6 {[%clk 0:02:59.6]} 9. h3 {[%clk 0:03:03]} 9... Re8 {[%clk 0:03:00]} 10. Ba2
{[%clk 0:03:03.1]} 10... Qc7 {[%clk 0:02:58.9]} 11. Be3 {[%clk 0:03:02.5]} 11...
Bf8 {[%clk 0:02:56.5]} 12. Qd2 {[%clk 0:02:56.4]} 12... exd4 {[%clk 0:02:53.2]}
13. Bxd4 {[%clk 0:02:55.9]} 13... Ne5 {[%clk 0:02:54.1]} 14. Nh2 {[%clk
0:02:46.3]} 14... Ng6 {[%clk 0:02:50.5]} 15. f4 {[%clk 0:02:40.2]} 15... Nh5
{[%clk 0:02:35.2]} 16. Be3 {[%clk 0:02:34.5]} 16... Ng3 {[%clk 0:02:28.8]} 17.
Bf2 {[%clk 0:02:25.2]} 17... Nh5 {[%clk 0:02:26.4]} 18. Be3 {[%clk 0:02:08.9]}
18... Ng3 {[%clk 0:02:15.7]} 19. Qd3 {[%clk 0:02:07.9]} 19... Kh8 {[%clk
0:02:10.3]} 20. f5 {[%clk 0:01:38.2]} 20... Ne5 {[%clk 0:02:09.2]} 21. Qd2
{[%clk 0:01:37.8]} 21... Nh5 {[%clk 0:02:06.7]} 22. Rf1 {[%clk 0:01:31.9]} 22...
Nf6 {[%clk 0:02:04.5]} 23. Rae1 {[%clk 0:01:30.7]} 23... Bd7 {[%clk 0:01:43]}
24. Bd4 {[%clk 0:01:29.3]} 24... Rad8 {[%clk 0:01:39.8]} 25. Kh1 {[%clk
0:01:22.3]} 25... Bc8 {[%clk 0:01:39.6]} 26. Nf3 {[%clk 0:01:19.7]} 26... Nfd7
{[%clk 0:01:37.7]} 27. Nh2 {[%clk 0:01:15.8]} 27... Nf6 {[%clk 0:01:31.4]} 28.
Qf2 {[%clk 0:01:15.1]} 28... b6 {[%clk 0:01:28.6]} 29. Bb3 {[%clk 0:01:14.8]}
29... Ba6 {[%clk 0:01:25.5]} 30. Rg1 {[%clk 0:01:15.1]} 30... Nfd7 {[%clk
0:01:21.8]} 31. Ba2 {[%clk 0:01:12.2]} 31... Nf6 {[%clk 0:01:20.4]} 32. Nf3
{[%clk 0:01:07.3]} 32... Nfd7 {[%clk 0:01:12.1]} 33. Be3 {[%clk 0:01:07.4]}
33... Nf6 {[%clk 0:00:56.5]} 34. Qh4 {[%clk 0:01:03.2]} 34... Qe7 {[%clk
0:00:40.5]} 35. Bg5 {[%clk 0:00:58.3]} 35... Kg8 {[%clk 0:00:37.1]} 36. Bxf6
{[%clk 0:00:54.7]} 36... Qxf6 {[%clk 0:00:38]} 37. Qxf6 {[%clk 0:00:54.3]} 37...
gxf6 {[%clk 0:00:38.9]} 38. Nd4 {[%clk 0:00:51.1]} 38... Bb7 {[%clk 0:00:34.3]}
39. Rd1 {[%clk 0:00:51]} 39... h5 {[%clk 0:00:26.4]} 40. Rge1 {[%clk 0:00:50.9]}
40... Bh6 {[%clk 0:00:23.9]} 41. Nf3 {[%clk 0:00:46.9]} 41... Nxf3 {[%clk
0:00:21]} 42. gxf3 {[%clk 0:00:47.8]} 42... Bf4 {[%clk 0:00:21.4]} 43. Ne2
{[%clk 0:00:46.5]} 43... Be5 {[%clk 0:00:18.8]} 44. c3 {[%clk 0:00:46.7]} 44...
d5 {[%clk 0:00:18.9]} 45. exd5 {[%clk 0:00:46]} 45... cxd5 {[%clk 0:00:19.5]}
46. Kg2 {[%clk 0:00:41.5]} 46... Kf8 {[%clk 0:00:17.7]} 47. Kf2 {[%clk
0:00:40.3]} 47... Ba6 {[%clk 0:00:13.4]} 48. Nd4 {[%clk 0:00:31.2]} 48... Bc4
{[%clk 0:00:10.3]} 49. b3 {[%clk 0:00:28.1]} 49... Ba6 {[%clk 0:00:09.7]} 50. h4
{[%clk 0:00:28.2]} 50... Bb7 {[%clk 0:00:07.7]} 51. Bb1 {[%clk 0:00:27.9]} 51...
Bxd4+ {[%clk 0:00:07.7]} 52. Rxd4 {[%clk 0:00:25.9]} 52... Rxe1 {[%clk 0:00:08]}
53. Kxe1 {[%clk 0:00:26.8]} 53... Re8+ {[%clk 0:00:08.4]} 54. Kd2 {[%clk
0:00:24.7]} 54... Re7 {[%clk 0:00:08.9]} 55. Bd3 {[%clk 0:00:24.8]} 55... Ke8
{[%clk 0:00:08.5]} 56. f4 {[%clk 0:00:25.1]} 56... Kd7 {[%clk 0:00:08.7]} 57.
Be2 {[%clk 0:00:25.5]} 57... Kd6 {[%clk 0:00:08.8]} 58. Bxh5 {[%clk 0:00:25.2]}
58... Re4 {[%clk 0:00:05.5]} 59. Rxe4 {[%clk 0:00:24.8]} 59... dxe4 {[%clk
0:00:06.4]} 60. Bxf7 {[%clk 0:00:23.5]} 60... Bc8 {[%clk 0:00:06.2]} 61. Bg6
{[%clk 0:00:20.6]} 61... Ke7 {[%clk 0:00:04.4]} 62. Ke3 {[%clk 0:00:20.5]} 62...
Bb7 {[%clk 0:00:04.4]} 63. h5 {[%clk 0:00:20.8]} 63... Bd5 {[%clk 0:00:04.1]}
64. b4 {[%clk 0:00:20.6]} 64... Bc6 {[%clk 0:00:04.6]} 65. a5 {[%clk 0:00:20.1]}
65... bxa5 {[%clk 0:00:04.6]} 66. bxa5 {[%clk 0:00:21]} 66... Kf8 {[%clk
0:00:05.2]} 67. h6 {[%clk 0:00:21.3]} 67... Kg8 {[%clk 0:00:05.6]} 68. Kd4
{[%clk 0:00:21.4]} 68... Kh8 {[%clk 0:00:05.7]} 69. c4 {[%clk 0:00:21.6]} 69...
Bb7 {[%clk 0:00:05.6]} 70. Bf7 {[%clk 0:00:20.7]} 70... Kh7 {[%clk 0:00:05.7]}
71. Bd5 {[%clk 0:00:21.2]} 71... Bc8 {[%clk 0:00:04.3]} 72. Be6 {[%clk
0:00:20.2]} 72... Kxh6 {[%clk 0:00:05.2]} 73. Bxc8 {[%clk 0:00:20.2]} 1-0